bitfinex/quotes_SOLUSD_20260226
["timestamp","ask_amount","ask_price","bid_price","bid_amount"]
[1772111961284,0.7060948,87.789,87.757,0.71967146]
[1772111961490,0.7060948,87.779,87.75,4.31762043]
[1772111961789,0.7060948,87.779,87.742,0.71967146]
[1772111962284,0.7060948,87.767,87.735,0.71967146]
[1772111962489,0.7060948,87.767,87.73,3.59794897]
[1772111962695,0.7060948,87.767,87.731,0.71967146]
[1772111963586,0.7060948,87.759,87.731,0.71967146]
[1772111965489,11.39497253,87.758,87.731,0.71967146]
[1772111965983,11.39497253,87.758,87.732,0.71967146]
[1772111969597,0.73713435,87.767,87.734,0.7591759]
[1772111970596,11.39410814,87.765,87.734,0.7591759]
[1772111970976,11.39410814,87.765,87.736,0.7591759]
[1772111971576,11.39410814,87.765,87.735,11.39795976]
[1772111971577,11.39362265,87.769,87.741,0.7591759]
[1772111972971,11.39241049,87.778,87.751,0.7591759]
[1772111973176,12.12954484,87.778,87.751,0.7591759]
[1772111974093,0.73713435,87.777,87.751,0.7591759]
[1772111974489,3.59794897,87.77,87.73,3.59794897]
[1772111974684,0.73713435,87.769,87.731,0.7591759]
[1772111974883,0.73713435,87.769,87.741,0.7591759]
[1772111975083,39.87785981,87.768,87.741,0.7591759]
[1772111975279,0.73713435,87.767,87.731,0.7591759]
[1772111975684,0.73713435,87.759,87.724,0.7591759]
[1772111977299,0.71518983,87.757,87.726,0.77492865]
[1772111980305,0.71518983,87.755,87.726,0.77492865]
[1772111982585,0.71518983,87.753,87.726,0.77492865]
[1772111982784,0.71518983,87.751,87.726,0.77492865]
[1772111983902,0.71518983,87.749,87.726,0.77492865]
[1772111985304,12.11146097,87.748,87.726,0.77492865]
[1772111985508,0.71518983,87.747,87.726,0.77492865]
[1772111987408,11.39653089,87.746,87.726,0.77492865]
[1772111988004,0.71518983,87.745,87.726,0.77492865]
[1772111988211,0.71518983,87.739,87.711,0.77492865]
[1772111988387,11.39653089,87.746,87.711,0.77492865]
[1772111988590,11.39653089,87.746,87.721,0.77492865]
[1772111989009,5.36086188,87.755,87.721,0.77492865]
[1772111989207,5.36086188,87.753,87.722,11.39964889]
[1772111989510,5.36086188,87.753,87.723,0.77492865]
[1772111989900,11.39549194,87.754,87.723,0.77492865]
[1772111990202,11.39549194,87.754,87.731,0.77492865]
[1772111991506,0.71518983,87.759,87.731,0.77492865]
[1772111993600,11.39497253,87.758,87.731,0.77492865]
[1772111996801,11.3945689,87.762,87.741,0.73391808]
[1772111998912,11.3934146,87.77,87.741,0.73391808]
[1772111999804,11.3934146,87.77,87.742,0.73391808]
[1772112000207,5.36086188,87.782,87.751,0.73391808]
[1772112000517,11.39094875,87.789,87.751,0.73391808]
[1772112000715,11.39094875,87.789,87.741,39.89011469]
[1772112000716,0.7326849,87.788,87.761,0.73391808]
[1772112000917,5.36086188,87.783,87.751,0.73391808]
[1772112001116,11.3918571,87.782,87.753,0.73391808]
[1772112001314,0.7326849,87.797,87.761,0.73391808]
[1772112001502,12.12259571,87.797,87.761,0.73391808]
[1772112001707,11.38991081,87.797,87.771,0.73391808]
[1772112002422,5.36086188,87.807,87.771,0.73391808]
[1772112002622,16.74947554,87.807,87.781,0.73391808]
[1772112002822,5.36086188,87.803,87.781,0.73391808]
[1772112003023,0.7326849,87.803,87.781,0.73391808]
[1772112003208,0.7326849,87.789,87.761,0.73391808]
[1772112005828,0.7326849,87.787,87.761,0.73391808]
[1772112006828,11.3910785,87.788,87.761,0.73391808]
[1772112007029,11.3910785,87.788,87.762,0.73391808]
[1772112008625,5.36086188,87.796,87.762,0.73391808]
[1772112008933,5.36086188,87.796,87.764,0.73391808]
[1772112009519,5.36086188,87.796,87.77,3.59611802]
[1772112009833,5.36086188,87.794,87.771,0.73391808]
[1772112011039,0.7326849,87.792,87.771,0.73391808]
[1772112012221,0.7326849,87.79,87.771,0.73391808]
[1772112014333,11.39094875,87.789,87.771,0.73391808]
[1772112015434,0.7326849,87.788,87.771,0.73391808]
[1772112016437,11.39120826,87.787,87.771,0.73391808]
[1772112016937,0.7326849,87.789,87.771,0.73391808]
[1772112016938,28.47389069,87.8,87.771,0.73391808]
[1772112017136,0.7326849,87.809,87.771,0.73391808]
[1772112017331,12.12116886,87.808,87.781,0.73391808]
[1772112017516,0.7326849,87.807,87.781,0.73391808]
[1772112018517,11.38874336,87.806,87.781,0.73391808]
[1772112019616,12.12142826,87.806,87.781,0.73391808]
[1772112022638,0.7326849,87.805,87.781,0.73391808]
[1772112022843,0.7326849,87.805,87.771,0.73391808]
[1772112024238,0.7326849,87.799,87.764,0.73391808]
[1772112027322,0.69461862,87.789,87.752,0.70698563]
[1772112028041,0.69461862,87.789,87.761,0.70698563]
[1772112030732,11.3910785,87.788,87.761,0.70698563]
[1772112031441,12.08569712,87.788,87.761,0.70698563]
[1772112033249,12.08569712,87.788,87.762,0.70698563]
[1772112036149,11.38978108,87.798,87.771,0.70698563]
[1772112038449,0.7394116,87.827,87.791,0.72717619]
[1772112038632,0.7394116,87.827,87.81,3.59611802]
[1772112038829,12.12562498,87.826,87.805,0.72717619]
[1772112039136,11.38621338,87.826,87.811,0.72717619]
[1772112040427,0.7394116,87.832,87.811,0.72717619]
[1772112040626,0.7394116,87.83,87.81,3.58918784]
[1772112043063,0.9394116,87.87,87.821,0.72717619]
[1772112043358,0.2,87.87,87.851,0.72717619]
[1772112043540,11.3805779,87.869,87.851,0.72717619]
[1772112044833,11.09586961,87.873,87.862,0.72717619]
[1772112045052,0.25347859,87.874,87.863,0.03186742]
[1772112045759,0.25347859,87.874,87.86,3.58918784]
[1772112045936,11.38005985,87.873,87.85,3.58918784]
[1772112051234,0.25347859,87.874,87.85,3.58918784]
[1772112051649,0.25347859,87.874,87.851,11.38290969]
[1772112052561,1.00658175,87.874,87.851,11.38290969]
[1772112055861,0.25347859,87.874,87.851,11.38290969]
[1772112056155,0.25347859,87.874,87.86,3.58918784]
[1772112061471,0.75310316,87.872,87.85,3.58918784]
[1772112061674,11.38005985,87.873,87.792,45.56202232]
[1772112061675,0.75310316,87.869,87.83,3.58918784]
[1772112061853,0.75310316,87.869,87.84,3.58918784]
[1772112062771,0.75310316,87.869,87.83,3.58918784]
[1772112063648,0.75310316,87.869,87.84,3.58918784]
[1772112063866,0.75310316,87.867,87.84,3.58918784]
[1772112064373,0.75310316,87.867,87.83,3.58918784]
[1772112064676,39.83247598,87.868,87.82,3.58918784]
[1772112064677,0.75310316,87.859,87.82,3.58918784]
[1772112065155,0.75310316,87.839,87.8,3.58918784]
[1772112065466,0.75310316,87.839,87.768,3.69383402]
[1772112065659,0.75310316,87.839,87.8,3.58918784]
[1772112065862,3.58918784,87.84,87.8,3.58918784]
[1772112065863,0.75310316,87.837,87.801,11.38939192]
[1772112066566,0.75310316,87.829,87.79,3.58918784]
[1772112066754,0.75310316,87.829,87.8,3.58918784]
[1772112067774,0.75310316,87.827,87.801,11.38939192]
[1772112068671,0.75310316,87.827,87.8,3.58918784]
[1772112069067,0.75310316,87.827,87.792,11.39048105]
[1772112069653,0.75310316,87.827,87.8,3.58918784]
[1772112071190,0.75310316,87.825,87.8,3.58918784]
[1772112072357,0.75310316,87.823,87.8,3.58918784]
[1772112072675,11.38640918,87.824,87.801,11.38939192]
[1772112073775,0.75310316,87.824,87.801,11.38939192]
[1772112081677,104.1,87.856,87.801,11.38939192]
[1772112081678,11.38530003,87.833,87.81,3.58918784]
[1772112081861,0.75310316,87.832,87.81,3.58918784]
[1772112082783,0.75310316,87.832,87.8,3.58918784]
[1772112083372,0.75310316,87.828,87.8,3.58918784]
[1772112083572,0.75310316,87.828,87.79,3.58918784]
[1772112085086,0.75310316,87.826,87.8,3.58918784]
[1772112087489,0.75310316,87.826,87.801,11.38939192]
[1772112087986,0.75310316,87.824,87.8,3.58918784]
[1772112088372,0.75310316,87.824,87.793,11.39040859]
[1772112089071,0.75310316,87.824,87.79,3.58918784]
[1772112089478,0.75310316,87.822,87.79,3.58918784]
[1772112090084,0.75310316,87.822,87.791,11.39068925]
[1772112090274,0.75310316,87.822,87.79,3.58918784]
[1772112090585,0.75310316,87.822,87.79,14.97997432]
[1772112090785,0.75310316,87.819,87.79,3.58918784]
[1772112090984,0.75310316,87.819,87.78,3.58918784]
[1772112091886,11.38718713,87.818,87.781,11.39198687]
[1772112092093,0.75310316,87.817,87.781,11.39198687]
[1772112092266,0.75310316,87.817,87.773,11.39302518]
[1772112092472,0.75310316,87.799,87.769,11.39353665]
[1772112092877,0.75310316,87.799,87.77,3.58918784]
[1772112093482,11.38978108,87.798,87.77,3.58918784]
[1772112093710,0.75310316,87.797,87.77,3.58918784]
[1772112093876,0.75310316,87.797,87.764,11.39407414]
[1772112094590,0.75310316,87.779,87.747,11.39634611]
[1772112094784,0.75310316,87.779,87.75,3.58918784]
[1772112094985,0.75310316,87.785,87.76,3.58918784]
[1772112095680,0.75310316,87.785,87.761,11.39458301]
[1772112097199,0.75310316,87.785,87.76,3.58918784]
[1772112097494,3.58918784,87.79,87.75,3.58918784]
[1772112097495,0.75310316,87.783,87.75,3.58918784]
[1772112098297,0.75310316,87.779,87.75,3.58918784]
[1772112099101,0.75310316,87.779,87.743,11.39684965]
[1772112099584,0.75310316,87.779,87.75,3.58918784]
[1772112100176,0.75310316,87.789,87.76,3.58918784]
[1772112100386,0.75310316,87.789,87.761,11.39458301]
[1772112101296,0.75310316,87.787,87.761,11.39458301]
[1772112102281,0.75310316,87.779,87.75,3.59278475]
[1772112102497,0.75310316,87.779,87.74,3.59278475]
[1772112103477,0.75310316,87.777,87.741,11.39718033]
[1772112104295,0.75310316,87.777,87.75,3.59278475]
[1772112106179,11.39237622,87.778,87.75,3.59278475]
[1772112106180,0.75310316,87.775,87.75,3.59278475]
[1772112107597,0.75310316,87.773,87.75,3.59278475]
[1772112108795,0.75310316,87.771,87.74,3.59278475]
[1772112109100,0.75310316,87.771,87.75,3.59278475]
[1772112109888,0.75310316,87.777,87.75,3.59278475]
[1772112110183,0.75310316,87.789,87.76,3.59278475]
[1772112110586,0.75310316,87.788,87.76,3.59278475]
[1772112112906,0.75310316,87.788,87.761,11.39458301]
[1772112114090,0.75310316,87.786,87.75,3.59278475]
[1772112115615,0.75310316,87.786,87.76,3.59278475]
[1772112116389,0.75310316,87.784,87.76,3.59278475]
[1772112116720,0.75310316,87.784,87.753,11.39561317]
[1772112118588,11.39172732,87.783,87.753,11.39561317]
[1772112118795,0.75310316,87.782,87.753,11.39561317]
[1772112119307,0.75310316,87.782,87.76,3.59278475]
[1772112121321,0.75310316,87.78,87.76,3.59278475]
[1772112121892,0.75310316,87.78,87.758,11.39484728]
[1772112122090,3.59278475,87.77,87.733,11.39821959]
[1772112122294,0.75310316,87.769,87.733,11.39821959]
[1772112122517,0.75310316,87.769,87.736,3.69383402]
[1772112122807,0.75310316,87.767,87.74,3.59278475]
[1772112125307,0.75310316,87.767,87.741,11.39718033]
[1772112125625,11.39393386,87.766,87.741,11.39718033]
[1772112125794,0.75310316,87.765,87.741,11.39718033]
[1772112127230,11.39419351,87.764,87.74,3.59278475]
[1772112127395,0.75310316,87.763,87.736,11.39777113]
[1772112128019,0.75310316,87.763,87.74,3.59278475]
[1772112128227,0.75310316,87.763,87.662,103.1]
[1772112128530,0.75310316,87.763,87.73,3.59278475]
[1772112128892,0.75310316,87.759,87.72,3.59278475]
[1772112129311,0.75310316,87.759,87.714,3.69383402]
[1772112129312,0.75310316,87.757,87.73,3.59278475]
[1772112130408,0.75310316,87.757,87.731,11.39847944]
[1772112131912,0.75310316,87.755,87.73,3.59278475]
[1772112132415,0.75310316,87.755,87.73,14.99130739]
[1772112133310,0.75310316,87.753,87.73,3.59278475]
[1772112134311,0.75310316,87.753,87.725,11.39919588]
[1772112135899,0.75310316,87.749,87.71,3.69278475]
[1772112136099,0.75310316,87.755,87.72,3.59278475]
[1772112136406,0.75310316,87.755,87.73,3.59278475]
[1772112137113,11.39476521,87.76,87.73,3.59278475]
[1772112137305,0.75310316,87.76,87.73,3.59278475]
[1772112138021,0.75310316,87.767,87.74,3.59278475]
[1772112138404,11.39327445,87.772,87.74,3.59278475]
[1772112138606,12.14637761,87.772,87.74,3.59278475]
[1772112138808,0.75310316,87.769,87.73,3.59278475]
[1772112139015,0.75310316,87.749,87.721,11.39977884]
[1772112140524,0.75310316,87.747,87.711,39.90352824]
[1772112140898,0.75310316,87.747,87.72,3.59278475]
[1772112141099,0.75310316,87.747,87.711,39.90352824]
[1772112142427,3.59278475,87.75,87.711,11.40107854]
[1772112142428,0.75310316,87.745,87.711,11.40107854]
[1772112142726,0.75310316,87.739,87.71,0.1]
[1772112144944,0.75310316,87.737,87.71,0.1]
[1772112145508,0.75310316,87.729,87.682,11.52126492]
[1772112145829,0.73365672,87.719,87.69,3.59278475]
[1772112147137,0.73365672,87.719,87.691,11.40367882]
[1772112147331,0.73365672,87.719,87.691,11.52067048]
[1772112147837,0.73365672,87.719,87.692,0.11699166]
[1772112148017,28.49061166,87.749,87.701,0.33293519]
[1772112148223,3.59278475,87.75,87.711,0.33326072]
[1772112148522,3.59278475,87.74,87.7,3.59278475]
[1772112149225,11.39744013,87.739,87.701,11.7359537]
[1772112149533,11.39614126,87.749,87.711,0.33357517]
[1772112150115,0.71557305,87.748,87.711,0.33357517]
[1772112152534,0.71557305,87.746,87.712,11.40094855]
[1772112153339,0.71557305,87.746,87.711,0.33357517]
[1772112153760,0.71557305,87.746,87.712,0.3347935]
[1772112154537,0.71557305,87.744,87.713,11.40081857]
[1772112155242,0.71557305,87.744,87.714,0.33538435]
[1772112156343,0.71557305,87.744,87.702,0.33568254]
[1772112156641,0.71557305,87.729,87.696,0.33568254]
[1772112158341,0.68918445,87.781,87.721,0.33653046]
[1772112158530,0.68918445,87.779,87.73,3.59278475]
[1772112158843,0.68918445,87.769,87.73,3.92931521]
[1772112159037,0.68918445,87.769,87.731,0.33653046]
[1772112159346,0.68918445,87.759,87.724,0.33681069]
[1772112159526,0.68918445,87.749,87.701,0.33681069]
[1772112159721,0.68918445,87.749,87.71,3.59278475]
[1772112159925,0.68918445,87.749,87.71,3.92959544]
[1772112160221,0.68918445,87.747,87.71,3.92959544]
[1772112161146,0.68918445,87.747,87.711,0.33733683]
[1772112162343,0.68918445,87.745,87.712,0.33759875]
[1772112164333,0.68918445,87.743,87.712,0.33759875]
[1772112164527,0.68918445,87.729,87.693,3.69383402]
[1772112164727,0.68918445,87.729,87.691,0.33810904]
[1772112166047,0.68918445,87.727,87.691,0.33810904]
[1772112166254,0.68918445,87.727,87.69,3.59705767]
[1772112167546,3.59705767,87.72,87.689,0.33861502]
[1772112167729,0.68918445,87.719,87.69,11.40380887]
[1772112167931,0.68918445,87.719,87.691,0.33886392]
[1772112168128,0.68918445,87.725,87.7,3.93617722]
[1772112169038,0.68918445,87.725,87.691,0.33911955]
[1772112170158,0.68918445,87.723,87.691,0.33911955]
[1772112170354,0.68918445,87.723,87.649,91.27275118]
[1772112170355,0.68918445,87.709,87.67,4.03667296]
[1772112170553,0.68918445,87.699,87.67,0.1]
[1772112171262,0.68918445,87.707,87.681,0.33985584]
[1772112172534,0.68918445,87.705,87.671,0.34009134]
[1772112172733,0.68918445,87.705,87.673,0.34009134]
[1772112173042,0.68918445,87.705,87.67,3.69705767]
[1772112173960,0.68918445,87.699,87.67,0.1]
[1772112174740,0.68918445,87.697,87.67,0.1]
[1772112175957,0.68918445,87.697,87.671,0.34077261]
[1772112178553,0.70232336,87.715,87.681,0.34165829]
[1772112179066,11.40042865,87.716,87.671,11.74793858]
[1772112179067,0.70232336,87.709,87.671,11.74793858]
[1772112179447,0.70232336,87.709,87.672,0.34187373]
[1772112180055,0.70232336,87.699,87.672,0.34187373]
[1772112180250,0.70232336,87.699,87.67,0.1]
[1772112180752,0.70232336,87.697,87.67,0.1]
[1772112181963,0.70232336,87.695,87.67,0.1]
[1772112182264,11.40302864,87.696,87.65,0.1]
[1772112182265,0.70232336,87.679,87.65,0.1]
[1772112182467,0.70232336,87.682,87.641,0.44252707]
[1772112182666,0.70232336,87.679,87.651,0.44252707]
[1772112183659,0.70232336,87.677,87.651,0.44252707]
[1772112183968,0.70232336,87.677,87.641,0.44280171]
[1772112184868,11.40536964,87.678,87.65,3.59705767]
[1772112185066,0.70232336,87.677,87.651,0.44309356]
[1772112185469,11.40406897,87.688,87.661,0.4433738]
[1772112185668,0.70232336,87.704,87.673,0.4433738]
[1772112185855,0.70232336,87.702,87.673,0.4433738]
[1772112186175,0.70232336,87.699,87.661,0.4433738]
[1772112186472,0.70232336,87.699,87.67,4.04070563]
[1772112187975,0.70232336,87.697,87.67,4.04070563]
[1772112189075,0.70232336,87.697,87.671,0.44419008]
[1772112189372,11.40208796,87.704,87.671,0.44419008]
[1772112189572,11.40208796,87.704,87.681,0.44445251]
[1772112191176,0.70232336,87.722,87.691,0.44497108]
[1772112191560,0.70232336,87.718,87.691,0.44497108]
[1772112191957,12.10185244,87.723,87.701,0.44497108]
[1772112192279,0.70232336,87.73,87.701,0.44522644]
[1772112192479,11.39873929,87.729,87.702,0.44522644]
[1772112192662,0.70232336,87.728,87.702,0.44522644]
[1772112192978,0.70232336,87.728,87.7,3.59705767]
[1772112193557,0.70232336,87.728,87.676,0.44547022]
[1772112193883,0.70232336,87.719,87.681,0.44547022]
[1772112194968,0.70232336,87.717,87.69,3.59705767]
[1772112195572,0.70232336,87.717,87.688,0.4457207]
[1772112196167,0.70232336,87.717,87.682,0.44596788]
[1772112196972,0.70232336,87.715,87.683,0.44621117]
[1772112197165,11.39996394,87.72,87.691,0.44645143]
[1772112197369,96.92311873,87.791,87.682,39.91697269]
[1772112197370,0.70232336,87.719,87.7,3.59705767]
[1772112197675,0.70232336,87.725,87.7,3.59705767]
[1772112198483,0.70232336,87.725,87.7,4.04374825]
[1772112199361,0.70232336,87.725,87.701,0.44693563]
[1772112199681,0.70232336,87.73,87.701,0.44693563]
[1772112199981,0.70232336,87.748,87.711,0.44693563]
[1772112200165,0.70232336,87.747,87.72,4.04422122]
[1772112201183,0.70232336,87.747,87.711,0.44739274]
[1772112201883,0.70232336,87.745,87.711,0.44739274]
[1772112202085,0.70232336,87.739,87.711,0.44739274]
[1772112203191,0.70232336,87.737,87.711,0.44739274]
[1772112204280,0.70232336,87.735,87.711,0.44739274]
[1772112204589,0.70232336,87.735,87.704,0.44806027]
[1772112206189,0.70232336,87.735,87.7,3.59705767]
[1772112206869,0.70016337,87.729,87.692,11.85224917]
[1772112207687,0.70016337,87.729,87.693,0.448958]
[1772112208792,0.70016337,87.727,87.693,0.448958]
[1772112209177,0.70016337,87.727,87.69,3.59705767]
[1772112209890,0.70016337,87.727,87.686,0.44936555]
[1772112210196,0.70016337,87.727,87.691,0.4495699]
[1772112211793,0.70016337,87.725,87.701,0.44977128]
[1772112212997,0.70016337,87.725,87.693,0.44996282]
[1772112214990,0.70016337,87.723,87.695,0.45035186]
[1772112215490,3.59705767,87.72,87.681,11.40485073]
[1772112215693,0.70016337,87.719,87.69,3.59705767]
[1772112216301,0.70016337,87.719,87.691,0.45053974]
[1772112217684,0.7089775,87.717,87.68,3.59705767]
[1772112217987,0.7089775,87.717,87.68,15.00207657]
[1772112218185,0.7089775,87.717,87.68,15.45334193]
[1772112218690,0.7089775,87.717,87.681,0.45126536]
[1772112218885,0.7089775,87.717,87.68,3.59705767]
[1772112219192,0.7089775,87.709,87.67,3.59705767]
[1772112219389,0.7089775,87.709,87.669,0.45126536]
[1772112219581,0.7089775,87.709,87.667,11.40672042]
[1772112219582,0.7089775,87.699,87.663,0.45144962]
[1772112219777,0.7089775,87.697,87.671,0.45144962]
[1772112219981,3.59705767,87.71,87.671,0.45144962]
[1772112219982,12.11122054,87.703,87.671,0.45144962]
[1772112220182,0.7089775,87.702,87.671,0.45144962]
[1772112220695,0.7089775,87.702,87.68,3.59705767]
[1772112221087,0.7089775,87.702,87.67,3.59705767]
[1772112221289,0.7089775,87.702,87.67,4.04886414]
[1772112221485,0.7089775,87.701,87.671,0.45180647]
[1772112221686,0.7089775,87.699,87.644,0.45180647]
[1772112222000,0.7089775,87.699,87.66,3.59705767]
[1772112222185,0.7089775,87.699,87.66,4.04904012]
[1772112222498,0.7089775,87.699,87.661,0.45198245]
[1772112224100,0.7089775,87.697,87.663,0.45232564]
[1772112224307,0.7089775,87.697,87.671,0.45232564]
[1772112225707,0.7089775,87.697,87.672,11.40615019]
[1772112225887,0.7089775,87.705,87.673,0.45249042]
[1772112226490,0.7089775,87.705,87.68,3.601061]
[1772112227601,0.7089775,87.703,87.672,11.40615019]
[1772112227802,0.7089775,87.703,87.673,0.45282895]
[1772112230212,0.7089775,87.703,87.67,3.601061]
[1772112230213,0.7089775,87.701,87.675,0.45316467]
[1772112231496,0.7089775,87.699,87.676,11.40562981]
[1772112232410,0.7089775,87.699,87.677,0.45363764]
[1772112232624,0.7089775,87.722,87.691,0.45363764]
[1772112233711,0.7089775,87.722,87.7,3.601061]
[1772112234009,0.7089775,87.721,87.69,3.601061]
[1772112234915,0.7089775,87.719,87.683,11.40459701]
[1772112235103,0.7089775,87.719,87.682,0.45410268]
[1772112238717,0.75538006,87.717,87.683,11.40471927]
[1772112239921,0.75538006,87.717,87.682,0.45410268]
[1772112240316,0.75538006,87.717,87.682,11.40477004]
[1772112240501,0.75538006,87.715,87.69,3.601061]
[1772112240695,0.75538006,87.725,87.691,0.4550191]
[1772112242517,0.75538006,87.725,87.69,3.601061]
[1772112242518,11.39938899,87.724,87.69,3.601061]
[1772112242818,0.75538006,87.719,87.691,11.40367882]
[1772112243022,0.75538006,87.719,87.692,0.455297]
[1772112243205,0.75538006,87.719,87.691,11.40367882]
[1772112243206,0.75538006,87.73,87.701,0.455297]
[1772112243404,5.36086188,87.725,87.691,0.45543575]
[1772112243609,0.75538006,87.722,87.691,0.45543575]
[1772112244004,0.75538006,87.722,87.69,3.601061]
[1772112244719,0.75538006,87.72,87.691,0.45557628]
[1772112244923,0.75538006,87.72,87.692,0.45557628]
[1772112245833,11.39935119,87.725,87.701,0.45571554]
[1772112246209,0.75538006,87.741,87.711,0.45571554]
[1772112246412,3.601061,87.75,87.691,39.91287588]
[1772112246413,0.75538006,87.75,87.721,0.45585175]
[1772112246623,0.75538006,87.75,87.73,4.05691275]
[1772112246923,11.3959699,87.751,87.731,0.45585175]
[1772112247220,0.75538006,87.754,87.731,0.45585175]
[1772112248005,0.75538006,87.754,87.725,0.45598548]
[1772112248204,0.75538006,87.754,87.721,0.45611521]
[1772112248820,0.75538006,87.752,87.73,3.601061]
[1772112249919,0.75538006,87.752,87.722,11.39964889]
[1772112249920,0.75538006,87.774,87.741,0.4562435]
[1772112250124,0.75538006,87.772,87.751,0.45637077]
[1772112250333,0.75538006,87.782,87.75,3.601061]
[1772112250838,12.14503142,87.799,87.762,11.39445318]
[1772112251132,0.75538006,87.798,87.771,0.45637077]
[1772112251617,0.75538006,87.798,87.78,3.601061]
[1772112251821,0.75538006,87.807,87.78,3.601061]
[1772112252023,0.75538006,87.807,87.781,0.45649547]
[1772112253008,0.75538006,87.807,87.782,0.4566175]
[1772112253334,12.14412342,87.806,87.782,0.4566175]
[1772112253512,0.75538006,87.805,87.782,0.4566175]
[1772112255226,0.75538006,87.805,87.76,3.601061]
[1772112255227,0.75538006,87.803,87.771,0.45698232]
[1772112256023,0.75538006,87.803,87.78,3.601061]
[1772112256711,0.75538006,87.803,87.78,14.99309276]
[1772112258730,0.75538006,87.803,87.78,3.601061]
[1772112259026,0.75538006,87.801,87.77,3.601061]
[1772112259228,0.75538006,87.801,87.771,0.45730097]
[1772112260919,11.3892622,87.802,87.77,14.99445493]
[1772112260920,0.75538006,87.799,87.772,11.39315499]
[1772112261110,0.75538006,87.799,87.773,0.45752065]
[1772112261306,0.75538006,87.799,87.78,3.601061]
[1772112261717,0.75538006,87.809,87.78,4.05869013]
[1772112262530,0.75538006,87.807,87.78,15.45073199]
[1772112262831,0.75538006,87.807,87.775,11.39268821]
[1772112263730,0.75538006,87.807,87.776,0.45784357]
[1772112263938,0.75538006,87.807,87.771,0.45784357]
[1772112264117,0.75538006,87.807,87.772,0.45784357]
[1772112264525,39.85975653,87.808,87.772,0.45784357]
[1772112264526,11.38874336,87.806,87.773,11.39302518]
[1772112264729,11.38874336,87.806,87.753,0.4579477]
[1772112264730,0.75538006,87.799,87.753,0.4579477]
[1772112264911,0.75538006,87.799,87.761,0.4579477]
[1772112265832,0.75538006,87.799,87.77,3.601061]
[1772112266938,0.70346602,87.797,87.77,3.601061]
[1772112268741,0.2,87.81,87.781,0.4584775]
[1772112268948,0.70346602,87.823,87.8,3.601061]
[1772112270027,0.70346602,87.823,87.81,3.601061]
[1772112270346,0.70346602,87.832,87.81,3.601061]
[1772112270924,0.70346602,87.832,87.802,0.45857095]
[1772112271223,0.70346602,87.83,87.802,11.84776385]
[1772112271636,0.70346602,87.83,87.803,0.45875669]
[1772112273866,0.70346602,87.828,87.8,3.601061]
[1772112274541,0.70346602,87.819,87.758,0.45905328]
[1772112274862,0.70346602,87.819,87.78,3.601061]
[1772112277128,0.74047152,87.817,87.781,11.39198687]
[1772112278248,0.74047152,87.809,87.77,3.601061]
[1772112279328,0.74047152,87.807,87.77,3.601061]
[1772112280736,0.74047152,87.799,87.76,3.601061]
[1772112282249,0.74047152,87.797,87.761,11.39458301]
[1772112285233,11.39004054,87.796,87.76,3.59294324]
[1772112285550,0.74047152,87.795,87.76,3.59294324]
[1772112286852,0.74047152,87.795,87.76,4.05311492]
[1772112287554,0.74047152,87.793,87.761,11.39458301]
[1772112288352,0.74047152,87.793,87.761,11.85490405]
[1772112288755,0.74047152,87.793,87.76,3.59294324]
[1772112288934,3.59294324,87.79,87.755,0.46032104]
[1772112289134,0.74047152,87.789,87.755,0.46032104]
[1772112289361,0.74047152,87.789,87.75,3.59294324]
[1772112289939,0.74047152,87.787,87.75,3.59294324]
[1772112290645,0.74047152,87.769,87.736,0.46047958]
[1772112291033,0.74047152,87.769,87.731,0.46047958]
[1772112291364,0.74047152,87.769,87.741,0.46055635]
[1772112291851,0.74047152,87.769,87.73,11.39848504]
[1772112291852,0.74047152,87.769,87.735,0.46055635]
[1772112292853,0.74047152,87.759,87.729,0.46064512]
[1772112293055,0.74047152,87.759,87.725,11.39914819]
[1772112294360,11.39497253,87.758,87.724,0.46064512]
[1772112294539,3.59294324,87.75,87.718,0.46079583]
[1772112294744,0.74047152,87.749,87.718,0.46079583]
[1772112295662,0.74047152,87.747,87.718,0.46079583]
[1772112296453,0.74047152,87.747,87.72,3.59294324]
[1772112296757,0.70042009,87.756,87.731,0.4610404]
[1772112297560,0.70042009,87.768,87.741,0.46111364]
[1772112297757,0.70042009,87.786,87.751,0.46111364]
[1772112298260,0.70042009,87.779,87.74,3.59294324]
[1772112298460,0.70042009,87.769,87.736,0.46118646]
[1772112298641,0.70042009,87.769,87.731,11.39847944]
[1772112298956,0.70042009,87.769,87.741,0.46118646]
[1772112299340,0.70042009,87.786,87.75,4.05419939]
[1772112299541,0.70042009,87.784,87.751,11.39588152]
[1772112300054,0.70042009,87.784,87.752,0.46125615]
[1772112300353,0.70042009,87.79,87.761,0.46132443]
[1772112300557,0.70042009,87.79,87.77,3.59294324]
[1772112300763,0.70042009,87.795,87.764,0.46132443]
[1772112301857,0.70042009,87.793,87.771,0.46138513]
[1772112302254,0.70042009,87.8,87.78,3.59294324]
[1772112302455,11.38874336,87.806,87.781,0.46144291]
[1772112302662,0.70042009,87.808,87.781,0.46144291]
[1772112302849,12.08895689,87.808,87.781,0.46144291]
[1772112303044,12.08895689,87.808,87.761,39.88104054]
[1772112303045,0.70042009,87.807,87.77,3.59294324]
[1772112303759,39.86060177,87.806,87.77,3.59294324]